[Event "Titled Tuesday Blitz February 07 Early 2023"]
[White "Vaglio Munoz, Jaime"]
[Black "Mrudul Dehankar"]
[WhiteFideId "6500145"]
[BlackFideId "25096990"]
[WhiteElo "2174"]
[BlackElo "2030"]
[Result "0-1"]
[Round "10"]
[TimeControl "180+2"]
[Date "2023.02.07"]
[WhiteClock "0:00:46"]
[BlackClock "0:00:31"]

1. d4 {[%clk 0:02:58]}  Nf6 {[%clk 0:02:58]} 2. c3 {[%clk 0:02:55]}  d5 {[%clk 0:02:52]} 3. Qc2 {[%clk 0:02:54]}  g6 {[%clk 0:02:50]} 4. g3 {[%clk 0:02:54]}  c5 {[%clk 0:02:48]} 5. Bg2 {[%clk 0:02:53]}  Nc6 {[%clk 0:02:43]} 6. dxc5 {[%clk 0:02:45]}  e5 {[%clk 0:02:39]} 7. Nf3 {[%clk 0:02:44]}  Bxc5 {[%clk 0:02:36]} 8. O-O {[%clk 0:02:44]}  Qc7 {[%clk 0:02:25]} 9. Bg5 {[%clk 0:02:39]}  Ne4 {[%clk 0:02:06]} 10. Bh6 {[%clk 0:02:37]}  Bf5 {[%clk 0:02:02]} 11. Qb3 {[%clk 0:02:32]}  O-O-O {[%clk 0:01:55]} 12. Nbd2 {[%clk 0:02:25]}  Kb8 {[%clk 0:01:51]} 13. Nxe4 {[%clk 0:02:20]}  Bxe4 {[%clk 0:01:48]} 14. Bg5 {[%clk 0:02:01]}  Rd6 {[%clk 0:01:42]} 15. Rad1 {[%clk 0:01:58]}  f6 {[%clk 0:01:39]} 16. Bc1 {[%clk 0:01:51]}  Na5 {[%clk 0:01:37]} 17. Qa4 {[%clk 0:01:51]}  Nc4 {[%clk 0:01:33]} 18. b4 {[%clk 0:01:44]}  Bb6 {[%clk 0:01:24]} 19. Nd2 {[%clk 0:01:41]}  Bxg2 {[%clk 0:01:14]} 20. Kxg2 {[%clk 0:01:42]}  g5 {[%clk 0:00:58]} 21. Nb3 {[%clk 0:01:42]}  h5 {[%clk 0:00:49]} 22. Nd2 {[%clk 0:01:25]}  h4 {[%clk 0:00:45]} 23. Nxc4 {[%clk 0:01:24]}  Qxc4 {[%clk 0:00:42]} 24. Qb3 {[%clk 0:01:23]}  Qe4+ {[%clk 0:00:39]} 25. Kg1 {[%clk 0:01:20]}  h3 {[%clk 0:00:33]} 26. Qxd5 {[%clk 0:00:50]}  Rxd5 {[%clk 0:00:32]} 27. Rd3 {[%clk 0:00:46]}  Qg2# {[%clk 0:00:31]} 0-1


[Site "https://www.chess.com"]

[Event "Titled Tuesday Blitz February 07 Early 2023"]
[White "Miszler, Levente"]
[Black "Onslow, Alfie"]
[WhiteFideId "763276"]
[BlackFideId "436976"]
[WhiteElo "2271"]
[BlackElo "2157"]
[Result "1/2-1/2"]
[Round "10"]
[TimeControl "180+2"]
[Date "2023.02.07"]
[WhiteClock "0:01:18"]
[BlackClock "0:00:03"]

1. Nf3 {[%clk 0:03:00]}  Nf6 {[%clk 0:02:59]} 2. c4 {[%clk 0:03:01]}  g6 {[%clk 0:02:59]} 3. g3 {[%clk 0:03:01]}  Bg7 {[%clk 0:02:59]} 4. Bg2 {[%clk 0:03:02]}  O-O {[%clk 0:02:59]} 5. O-O {[%clk 0:03:03]}  c6 {[%clk 0:02:59]} 6. Nc3 {[%clk 0:03:00]}  d5 {[%clk 0:02:59]} 7. cxd5 {[%clk 0:03:00]}  cxd5 {[%clk 0:03:00]} 8. d4 {[%clk 0:03:00]}  Nc6 {[%clk 0:03:00]} 9. Ne5 {[%clk 0:03:01]}  Bf5 {[%clk 0:02:55]} 10. Bf4 {[%clk 0:02:59]}  Rc8 {[%clk 0:02:49]} 11. Nxc6 {[%clk 0:02:56]}  Rxc6 {[%clk 0:02:46]} 12. Rc1 {[%clk 0:02:55]}  Ne4 {[%clk 0:02:44]} 13. Nxe4 {[%clk 0:02:50]}  Rxc1 {[%clk 0:02:42]} 14. Qxc1 {[%clk 0:02:49]}  Bxe4 {[%clk 0:02:35]} 15. Bxe4 {[%clk 0:02:48]}  dxe4 {[%clk 0:02:36]} 16. Rd1 {[%clk 0:02:47]}  Qd5 {[%clk 0:02:32]} 17. b3 {[%clk 0:02:42]}  h5 {[%clk 0:02:06]} 18. Qc7 {[%clk 0:02:39]}  Bf6 {[%clk 0:01:39]} 19. Be3 {[%clk 0:02:31]}  h4 {[%clk 0:01:31]} 20. Rc1 {[%clk 0:02:30]}  Bxd4 {[%clk 0:01:14]} 21. Bxd4 {[%clk 0:02:26]}  Qxd4 {[%clk 0:01:14]} 22. Qxb7 {[%clk 0:02:23]}  e3 {[%clk 0:00:56]} 23. Rf1 {[%clk 0:02:20]}  exf2+ {[%clk 0:00:53]} 24. Rxf2 {[%clk 0:02:21]}  h3 {[%clk 0:00:35]} 25. Qxe7 {[%clk 0:02:19]}  Qd1+ {[%clk 0:00:26]} 26. Rf1 {[%clk 0:02:15]}  Qd4+ {[%clk 0:00:26]} 27. Rf2 {[%clk 0:02:15]}  Qa1+ {[%clk 0:00:15]} 28. Rf1 {[%clk 0:02:14]}  Qxa2 {[%clk 0:00:13]} 29. Qe3 {[%clk 0:02:09]}  Qb2 {[%clk 0:00:11]} 30. g4 {[%clk 0:02:08]}  Rc8 {[%clk 0:00:10]} 31. Qxh3 {[%clk 0:01:56]}  Qxe2 {[%clk 0:00:10]} 32. Qf3 {[%clk 0:01:55]}  Qxf3 {[%clk 0:00:08]} 33. Rxf3 {[%clk 0:01:56]}  Rc2 {[%clk 0:00:09]} 34. Rd3 {[%clk 0:01:56]}  Rb2 {[%clk 0:00:08]} 35. Rd7 {[%clk 0:01:52]}  Rxb3 {[%clk 0:00:07]} 36. Rxa7 {[%clk 0:01:52]}  Rb2 {[%clk 0:00:08]} 37. Rc7 {[%clk 0:01:51]}  Kg7 {[%clk 0:00:09]} 38. Rc5 {[%clk 0:01:45]}  Kh6 {[%clk 0:00:07]} 39. Ra5 {[%clk 0:01:43]}  Kg7 {[%clk 0:00:04]} 40. Rc5 {[%clk 0:01:43]}  Kf6 {[%clk 0:00:04]} 41. Ra5 {[%clk 0:01:43]}  Re2 {[%clk 0:00:04]} 42. Rb5 {[%clk 0:01:41]}  Re5 {[%clk 0:00:02]} 43. Rb7 {[%clk 0:01:37]}  Kg5 {[%clk 0:00:01]} 44. h3 {[%clk 0:01:35]}  Kh4 {[%clk 0:00:01]} 45. Rb3 {[%clk 0:01:28]}  Re2 {[%clk 0:00:01]} 46. Rf3 {[%clk 0:01:27]}  Ra2 {[%clk 0:00:02]} 47. g5 {[%clk 0:01:22]}  Kxg5 {[%clk 0:00:01]} 48. Rxf7 {[%clk 0:01:22]}  Kh4 {[%clk 0:00:02]} 49. Rf3 {[%clk 0:01:21]}  g5 {[%clk 0:00:02]} 50. Rc3 {[%clk 0:01:21]}  g4 {[%clk 0:00:02]} 51. hxg4 {[%clk 0:01:18]}  Kxg4 {[%clk 0:00:03]} 52. Rc4+ {[%clk 0:01:19]}  Kf3 {[%clk 0:00:03]} 53. Rc3+ {[%clk 0:01:18]} 1/2-1/2


[Site "https://www.chess.com"]

[Event "Titled Tuesday Blitz February 07 Early 2023"]
[White "Dzhaparov, Medet"]
[Black "Fathy, Elameir"]
[WhiteFideId "13803689"]
[BlackFideId "10600396"]
[WhiteElo "1578"]
[BlackElo "2300"]
[Result "1-0"]
[Round "10"]
[TimeControl "180+2"]
[Date "2023.02.07"]
[WhiteClock "0:01:02"]
[BlackClock "0:01:45"]

1. e4 {[%clk 0:03:00]}  c6 {[%clk 0:02:54]} 2. d4 {[%clk 0:03:00]}  d5 {[%clk 0:02:54]} 3. exd5 {[%clk 0:03:01]}  cxd5 {[%clk 0:02:54]} 4. Nf3 {[%clk 0:03:01]}  Nf6 {[%clk 0:02:54]} 5. Bb5+ {[%clk 0:02:58]}  Bd7 {[%clk 0:02:53]} 6. Bxd7+ {[%clk 0:02:58]}  Nbxd7 {[%clk 0:02:49]} 7. O-O {[%clk 0:02:59]}  e6 {[%clk 0:02:49]} 8. Nc3 {[%clk 0:02:58]}  Be7 {[%clk 0:02:46]} 9. a3 {[%clk 0:02:56]}  O-O {[%clk 0:02:46]} 10. h3 {[%clk 0:02:55]}  Rc8 {[%clk 0:02:46]} 11. Re1 {[%clk 0:02:55]}  a6 {[%clk 0:02:47]} 12. Bf4 {[%clk 0:02:50]}  b5 {[%clk 0:02:47]} 13. Ne5 {[%clk 0:02:49]}  Nb6 {[%clk 0:02:47]} 14. Bg5 {[%clk 0:02:43]}  h6 {[%clk 0:02:46]} 15. Bh4 {[%clk 0:02:43]}  Qc7 {[%clk 0:02:35]} 16. Bxf6 {[%clk 0:02:41]}  Bxf6 {[%clk 0:02:35]} 17. Ng4 {[%clk 0:02:41]}  Be7 {[%clk 0:02:33]} 18. Re3 {[%clk 0:02:36]}  b4 {[%clk 0:02:33]} 19. axb4 {[%clk 0:02:35]}  Nc4 {[%clk 0:02:33]} 20. Rg3 {[%clk 0:02:32]}  Nxb2 {[%clk 0:02:33]} 21. Nxh6+ {[%clk 0:02:28]}  Kh7 {[%clk 0:02:34]} 22. Qg4 {[%clk 0:02:21]}  Bf6 {[%clk 0:02:20]} 23. Nf5 {[%clk 0:01:14]}  Qxc3 {[%clk 0:01:47]} 24. Qh5+ {[%clk 0:01:03]}  Kg8 {[%clk 0:01:46]} 25. Rxg7+ {[%clk 0:01:02]}  Bxg7 {[%clk 0:01:45]} 26. Ne7# {[%clk 0:01:02]} 1-0


[Site "https://www.chess.com"]

[Event "Titled Tuesday Blitz February 07 Early 2023"]
[White "Schut, Han"]
[Black "Larina, Maria"]
[WhiteFideId "1005561"]
[BlackFideId "24113182"]
[WhiteElo "2101"]
[BlackElo "1948"]
[Result "1-0"]
[Round "10"]
[TimeControl "180+2"]
[Date "2023.02.07"]
[WhiteClock "0:00:06"]
[BlackClock "0:00:02"]

1. e4 {[%clk 0:03:00]}  c6 {[%clk 0:02:58]} 2. d4 {[%clk 0:02:58]}  d5 {[%clk 0:02:59]} 3. exd5 {[%clk 0:02:56]}  cxd5 {[%clk 0:03:00]} 4. c4 {[%clk 0:02:56]}  Nf6 {[%clk 0:02:56]} 5. Nc3 {[%clk 0:02:56]}  e6 {[%clk 0:02:50]} 6. Nf3 {[%clk 0:02:56]}  Be7 {[%clk 0:02:47]} 7. cxd5 {[%clk 0:02:56]}  Nxd5 {[%clk 0:02:45]} 8. Bd3 {[%clk 0:02:55]}  O-O {[%clk 0:02:42]} 9. O-O {[%clk 0:02:54]}  Nc6 {[%clk 0:02:41]} 10. Qe2 {[%clk 0:02:52]}  Nf6 {[%clk 0:02:34]} 11. Bg5 {[%clk 0:02:48]}  Nxd4 {[%clk 0:02:31]} 12. Nxd4 {[%clk 0:02:48]}  Qxd4 {[%clk 0:02:31]} 13. Rad1 {[%clk 0:02:37]}  Qb6 {[%clk 0:02:19]} 14. Bb1 {[%clk 0:02:20]}  Rd8 {[%clk 0:01:41]} 15. Ne4 {[%clk 0:02:19]}  Kh8 {[%clk 0:01:13]} 16. Nxf6 {[%clk 0:02:04]}  Bxf6 {[%clk 0:01:11]} 17. Bxf6 {[%clk 0:01:55]}  gxf6 {[%clk 0:01:11]} 18. Qh5 {[%clk 0:01:30]}  f5 {[%clk 0:01:08]} 19. Qh4 {[%clk 0:01:22]}  Bd7 {[%clk 0:00:58]} 20. Qf6+ {[%clk 0:01:21]}  Kg8 {[%clk 0:00:58]} 21. Rd3 {[%clk 0:01:21]}  e5 {[%clk 0:00:29]} 22. Rg3+ {[%clk 0:01:15]}  Kf8 {[%clk 0:00:28]} 23. Qxe5 {[%clk 0:00:44]}  Be6 {[%clk 0:00:24]} 24. Bxf5 {[%clk 0:00:36]}  Ke7 {[%clk 0:00:17]} 25. Rg7 {[%clk 0:00:29]}  Rf8 {[%clk 0:00:16]} 26. Bxe6 {[%clk 0:00:20]}  Qxe6 {[%clk 0:00:15]} 27. Qc5+ {[%clk 0:00:20]}  Kd7 {[%clk 0:00:13]} 28. Rd1+ {[%clk 0:00:19]}  Ke8 {[%clk 0:00:11]} 29. Qb5+ {[%clk 0:00:16]}  Qc6 {[%clk 0:00:11]} 30. Qe2+ {[%clk 0:00:12]}  Qe6 {[%clk 0:00:10]} 31. Qb5+ {[%clk 0:00:12]}  Qc6 {[%clk 0:00:10]} 32. Re1+ {[%clk 0:00:12]}  Kd7 {[%clk 0:00:09]} 33. Qd3+ {[%clk 0:00:09]}  Kc7 {[%clk 0:00:08]} 34. Qg3+ {[%clk 0:00:09]}  Kb6 {[%clk 0:00:07]} 35. Rg4 {[%clk 0:00:06]}  a6 {[%clk 0:00:06]} 36. Rb4+ {[%clk 0:00:05]}  Ka7 {[%clk 0:00:06]} 37. Qe3+ {[%clk 0:00:06]}  b6 {[%clk 0:00:05]} 38. Rc1 {[%clk 0:00:06]}  Qb7 {[%clk 0:00:05]} 39. Rbc4 {[%clk 0:00:04]}  Rac8 {[%clk 0:00:04]} 40. Qb3 {[%clk 0:00:04]}  Rxc4 {[%clk 0:00:04]} 41. Rxc4 {[%clk 0:00:05]}  Rd8 {[%clk 0:00:03]} 42. f3 {[%clk 0:00:04]}  Qd7 {[%clk 0:00:02]} 43. Qc3 {[%clk 0:00:04]}  Qd1+ {[%clk 0:00:02]} 44. Kf2 {[%clk 0:00:04]}  Rd2+ {[%clk 0:00:02]} 45. Kg3 {[%clk 0:00:04]}  Qe1+ {[%clk 0:00:03]} 46. Kh3 {[%clk 0:00:05]}  Qe6+ {[%clk 0:00:02]} 47. g4 {[%clk 0:00:04]}  Rd7 {[%clk 0:00:02]} 48. Rc7+ {[%clk 0:00:04]}  Rxc7 {[%clk 0:00:01]} 49. Qxc7+ {[%clk 0:00:05]}  Ka8 {[%clk 0:00:02]} 50. Qg3 {[%clk 0:00:06]}  Qh6+ {[%clk 0:00:02]} 51. Kg2 {[%clk 0:00:06]}  Qd2+ {[%clk 0:00:02]} 52. Kh3 {[%clk 0:00:06]}  Qh6+ {[%clk 0:00:02]} 53. Qh4 {[%clk 0:00:07]}  Qd2 {[%clk 0:00:02]} 54. Qe7 {[%clk 0:00:06]} 1-0


[Site "https://www.chess.com"]

[Event "Titled Tuesday Blitz February 07 Early 2023"]
[White "Matveeva, Olga"]
[Black "Zampronha, Wladimir Camilo"]
[WhiteFideId "24107018"]
[BlackFideId "2103087"]
[WhiteElo "2128"]
[BlackElo "2176"]
[Result "1/2-1/2"]
[Round "10"]
[TimeControl "180+2"]
[Date "2023.02.07"]
[WhiteClock "0:00:13"]
[BlackClock "0:00:08"]

1. d4 {[%clk 0:03:00]}  Nf6 {[%clk 0:02:59]} 2. c4 {[%clk 0:03:00]}  e6 {[%clk 0:02:59]} 3. g3 {[%clk 0:03:00]}  d5 {[%clk 0:02:59]} 4. Nf3 {[%clk 0:03:00]}  Be7 {[%clk 0:02:59]} 5. Bg2 {[%clk 0:03:00]}  O-O {[%clk 0:02:59]} 6. O-O {[%clk 0:03:01]}  dxc4 {[%clk 0:03:00]} 7. Qc2 {[%clk 0:03:00]}  a6 {[%clk 0:03:00]} 8. a4 {[%clk 0:03:00]}  Bd7 {[%clk 0:03:00]} 9. Qxc4 {[%clk 0:03:00]}  Bc6 {[%clk 0:03:00]} 10. Bf4 {[%clk 0:03:00]}  a5 {[%clk 0:02:54]} 11. Nc3 {[%clk 0:02:59]}  Na6 {[%clk 0:02:53]} 12. Rfd1 {[%clk 0:02:53]}  Ne4 {[%clk 0:02:45]} 13. Ne5 {[%clk 0:02:38]}  Bd5 {[%clk 0:02:10]} 14. Qd3 {[%clk 0:02:30]}  Nb4 {[%clk 0:02:06]} 15. Qb1 {[%clk 0:02:28]}  Nxc3 {[%clk 0:02:05]} 16. bxc3 {[%clk 0:02:29]}  Bxg2 {[%clk 0:02:05]} 17. Kxg2 {[%clk 0:02:27]}  Nd5 {[%clk 0:02:03]} 18. Qxb7 {[%clk 0:02:18]}  Nxf4+ {[%clk 0:01:57]} 19. gxf4 {[%clk 0:02:19]}  Bd6 {[%clk 0:01:58]} 20. Rab1 {[%clk 0:02:10]}  Qh4 {[%clk 0:01:57]} 21. e3 {[%clk 0:02:05]}  c5 {[%clk 0:01:41]} 22. Qf3 {[%clk 0:02:03]}  cxd4 {[%clk 0:01:38]} 23. cxd4 {[%clk 0:02:04]}  Bxe5 {[%clk 0:01:30]} 24. fxe5 {[%clk 0:02:04]}  Rac8 {[%clk 0:01:29]} 25. Rb5 {[%clk 0:01:57]}  Rc2 {[%clk 0:01:18]} 26. Rxa5 {[%clk 0:01:55]}  Qg5+ {[%clk 0:01:14]} 27. Kh1 {[%clk 0:01:50]}  Qh4 {[%clk 0:01:14]} 28. Kg2 {[%clk 0:01:45]}  Qg5+ {[%clk 0:01:14]} 29. Qg3 {[%clk 0:01:43]}  Qf5 {[%clk 0:01:13]} 30. Rb5 {[%clk 0:01:32]}  Ra2 {[%clk 0:01:07]} 31. a5 {[%clk 0:01:29]}  Ra8 {[%clk 0:01:03]} 32. Rdb1 {[%clk 0:01:27]}  h6 {[%clk 0:00:59]} 33. Qf3 {[%clk 0:01:26]}  Qxf3+ {[%clk 0:00:55]} 34. Kxf3 {[%clk 0:01:26]}  R2xa5 {[%clk 0:00:55]} 35. Rb8+ {[%clk 0:01:25]}  Rxb8 {[%clk 0:00:54]} 36. Rxb8+ {[%clk 0:01:26]}  Kh7 {[%clk 0:00:54]} 37. Rb7 {[%clk 0:01:25]}  Kg6 {[%clk 0:00:54]} 38. Kf4 {[%clk 0:01:24]}  Ra2 {[%clk 0:00:53]} 39. Kf3 {[%clk 0:01:22]}  Ra3 {[%clk 0:00:51]} 40. h3 {[%clk 0:01:20]}  Ra1 {[%clk 0:00:52]} 41. Rb6 {[%clk 0:01:18]}  Ra3 {[%clk 0:00:51]} 42. Kg2 {[%clk 0:01:14]}  Kh7 {[%clk 0:00:50]} 43. Rd6 {[%clk 0:01:08]}  Ra5 {[%clk 0:00:43]} 44. Kf3 {[%clk 0:01:07]}  Ra3 {[%clk 0:00:43]} 45. d5 {[%clk 0:01:06]}  Ra5 {[%clk 0:00:32]} 46. dxe6 {[%clk 0:00:55]}  Rxe5 {[%clk 0:00:33]} 47. exf7 {[%clk 0:00:50]}  Rf5+ {[%clk 0:00:33]} 48. Kg3 {[%clk 0:00:48]}  Rxf7 {[%clk 0:00:34]} 49. f4 {[%clk 0:00:47]}  Ra7 {[%clk 0:00:35]} 50. f5 {[%clk 0:00:45]}  Ra1 {[%clk 0:00:33]} 51. e4 {[%clk 0:00:44]}  Rf1 {[%clk 0:00:30]} 52. Rd7 {[%clk 0:00:43]}  Kg8 {[%clk 0:00:30]} 53. Kg4 {[%clk 0:00:41]}  Rf2 {[%clk 0:00:30]} 54. e5 {[%clk 0:00:37]}  Rg2+ {[%clk 0:00:24]} 55. Kf4 {[%clk 0:00:37]}  Rh2 {[%clk 0:00:25]} 56. e6 {[%clk 0:00:35]}  Kf8 {[%clk 0:00:13]} 57. Rf7+ {[%clk 0:00:31]}  Kg8 {[%clk 0:00:13]} 58. Ra7 {[%clk 0:00:30]}  Kf8 {[%clk 0:00:13]} 59. Kg4 {[%clk 0:00:20]}  Rg2+ {[%clk 0:00:13]} 60. Kf4 {[%clk 0:00:20]}  Rh2 {[%clk 0:00:12]} 61. Kg3 {[%clk 0:00:20]}  Rh1 {[%clk 0:00:12]} 62. Rf7+ {[%clk 0:00:19]}  Kg8 {[%clk 0:00:11]} 63. Rd7 {[%clk 0:00:19]}  Kf8 {[%clk 0:00:12]} 64. Rc7 {[%clk 0:00:17]}  Rf1 {[%clk 0:00:10]} 65. Kg4 {[%clk 0:00:16]}  Rg1+ {[%clk 0:00:08]} 66. Kf4 {[%clk 0:00:17]}  Rh1 {[%clk 0:00:09]} 67. Rc8+ {[%clk 0:00:15]}  Ke7 {[%clk 0:00:08]} 68. Rc7+ {[%clk 0:00:15]}  Kf8 {[%clk 0:00:09]} 69. Kg4 {[%clk 0:00:15]}  Rg1+ {[%clk 0:00:08]} 70. Kf3 {[%clk 0:00:14]}  Rh1 {[%clk 0:00:08]} 71. Kg3 {[%clk 0:00:14]}  Rg1+ {[%clk 0:00:08]} 72. Kf4 {[%clk 0:00:13]}  Rf1+ {[%clk 0:00:08]} 73. Ke5 {[%clk 0:00:13]}  Rh1 {[%clk 0:00:09]} 74. f6 {[%clk 0:00:13]}  Re1+ {[%clk 0:00:08]} 75. Kd6 {[%clk 0:00:13]}  Rd1+ {[%clk 0:00:08]} 76. Ke5 {[%clk 0:00:13]}  Re1+ {[%clk 0:00:08]} 77. Kd6 {[%clk 0:00:13]}  Rd1+ {[%clk 0:00:08]} 78. Ke5 {[%clk 0:00:13]}  Re1+ {[%clk 0:00:08]} 1/2-1/2


[Site "https://www.chess.com"]

[Event "Titled Tuesday Blitz February 07 Early 2023"]
[White "Von Buelow, Georg"]
[Black "Bashirli, Saadat"]
[WhiteFideId "4620658"]
[BlackFideId "13429990"]
[WhiteElo "2345"]
[BlackElo "1571"]
[Result "1-0"]
[Round "10"]
[TimeControl "180+2"]
[Date "2023.02.07"]
[WhiteClock "0:00:15"]
[BlackClock "0:00:19"]

1. e4 {[%clk 0:02:45]}  e6 {[%clk 0:02:57]} 2. d4 {[%clk 0:02:45]}  d5 {[%clk 0:02:57]} 3. Nc3 {[%clk 0:02:45]}  Bb4 {[%clk 0:02:57]} 4. e5 {[%clk 0:02:45]}  c5 {[%clk 0:02:55]} 5. a3 {[%clk 0:02:45]}  Bxc3+ {[%clk 0:02:53]} 6. bxc3 {[%clk 0:02:46]}  Nc6 {[%clk 0:02:54]} 7. Qg4 {[%clk 0:02:44]}  Kf8 {[%clk 0:02:53]} 8. a4 {[%clk 0:02:39]}  Nge7 {[%clk 0:02:51]} 9. Nf3 {[%clk 0:02:37]}  Qa5 {[%clk 0:02:48]} 10. Bd2 {[%clk 0:02:36]}  Nf5 {[%clk 0:02:36]} 11. Bd3 {[%clk 0:02:34]}  Qb6 {[%clk 0:02:19]} 12. O-O {[%clk 0:02:24]}  cxd4 {[%clk 0:02:15]} 13. Bxf5 {[%clk 0:01:54]}  exf5 {[%clk 0:02:12]} 14. Qf4 {[%clk 0:01:51]}  dxc3 {[%clk 0:02:09]} 15. Bxc3 {[%clk 0:01:51]}  Be6 {[%clk 0:02:06]} 16. Rfb1 {[%clk 0:01:25]}  Qc7 {[%clk 0:02:02]} 17. Nd4 {[%clk 0:01:13]}  Nxd4 {[%clk 0:01:59]} 18. Bb4+ {[%clk 0:01:11]}  Ke8 {[%clk 0:01:54]} 19. Qxd4 {[%clk 0:01:10]}  b6 {[%clk 0:01:48]} 20. a5 {[%clk 0:01:07]}  bxa5 {[%clk 0:01:35]} 21. Rxa5 {[%clk 0:00:59]}  Rb8 {[%clk 0:01:27]} 22. c3 {[%clk 0:00:50]}  Qb6 {[%clk 0:01:16]} 23. Rxa7 {[%clk 0:00:27]}  Qxd4 {[%clk 0:01:05]} 24. cxd4 {[%clk 0:00:27]}  Bd7 {[%clk 0:01:00]} 25. Kf1 {[%clk 0:00:20]}  f4 {[%clk 0:00:52]} 26. Ke1 {[%clk 0:00:19]}  Be6 {[%clk 0:00:43]} 27. Kd2 {[%clk 0:00:19]}  Bf5 {[%clk 0:00:36]} 28. Rb2 {[%clk 0:00:18]}  Be6 {[%clk 0:00:35]} 29. Kc3 {[%clk 0:00:18]}  Rc8+ {[%clk 0:00:33]} 30. Bc5 {[%clk 0:00:18]}  Bd7 {[%clk 0:00:31]} 31. Rbb7 {[%clk 0:00:18]}  Be6 {[%clk 0:00:29]} 32. Re7+ {[%clk 0:00:17]}  Kd8 {[%clk 0:00:29]} 33. Kb4 {[%clk 0:00:10]}  Rb8+ {[%clk 0:00:28]} 34. Ka5 {[%clk 0:00:10]}  Re8 {[%clk 0:00:17]} 35. Bb6+ {[%clk 0:00:10]}  Rxb6 {[%clk 0:00:16]} 36. Rxe8+ {[%clk 0:00:10]}  Kxe8 {[%clk 0:00:16]} 37. Kxb6 {[%clk 0:00:11]}  Bd7 {[%clk 0:00:14]} 38. Kc7 {[%clk 0:00:09]}  Ke7 {[%clk 0:00:14]} 39. Kb6 {[%clk 0:00:09]}  f6 {[%clk 0:00:13]} 40. exf6+ {[%clk 0:00:08]}  gxf6 {[%clk 0:00:14]} 41. Kc5 {[%clk 0:00:08]}  Ke6 {[%clk 0:00:14]} 42. Rxd7 {[%clk 0:00:07]}  Kxd7 {[%clk 0:00:14]} 43. Kxd5 {[%clk 0:00:07]}  Ke7 {[%clk 0:00:14]} 44. f3 {[%clk 0:00:07]}  Kd7 {[%clk 0:00:12]} 45. h4 {[%clk 0:00:07]}  f5 {[%clk 0:00:11]} 46. Ke5 {[%clk 0:00:07]}  h5 {[%clk 0:00:12]} 47. Kxf5 {[%clk 0:00:07]}  Kd6 {[%clk 0:00:13]} 48. Ke4 {[%clk 0:00:07]}  Ke6 {[%clk 0:00:12]} 49. Kxf4 {[%clk 0:00:07]}  Kd6 {[%clk 0:00:13]} 50. Ke4 {[%clk 0:00:08]}  Ke6 {[%clk 0:00:13]} 51. d5+ {[%clk 0:00:09]}  Kf6 {[%clk 0:00:13]} 52. g4 {[%clk 0:00:09]}  hxg4 {[%clk 0:00:12]} 53. fxg4 {[%clk 0:00:10]}  Kg6 {[%clk 0:00:13]} 54. Kf4 {[%clk 0:00:10]}  Kf6 {[%clk 0:00:14]} 55. h5 {[%clk 0:00:10]}  Kg7 {[%clk 0:00:14]} 56. g5 {[%clk 0:00:11]}  Kf7 {[%clk 0:00:14]} 57. Ke5 {[%clk 0:00:12]}  Ke7 {[%clk 0:00:15]} 58. d6+ {[%clk 0:00:13]}  Kd7 {[%clk 0:00:15]} 59. Kd5 {[%clk 0:00:14]}  Kd8 {[%clk 0:00:16]} 60. Ke6 {[%clk 0:00:14]}  Ke8 {[%clk 0:00:17]} 61. g6 {[%clk 0:00:15]}  Kd8 {[%clk 0:00:18]} 62. h6 {[%clk 0:00:15]}  Kc8 {[%clk 0:00:18]} 63. h7 {[%clk 0:00:16]}  Kd8 {[%clk 0:00:19]} 64. h8=Q# {[%clk 0:00:15]} 1-0


[Site "https://www.chess.com"]

[Event "Titled Tuesday Blitz February 07 Early 2023"]
[White "Burke, John F"]
[Black "Mendez Machado, Andre"]
[WhiteFideId "2052970"]
[BlackFideId "6603793"]
[WhiteElo "2013"]
[BlackElo "1974"]
[Result "0-1"]
[Round "10"]
[TimeControl "180+2"]
[Date "2023.02.07"]
[WhiteClock "0:00:16"]
[BlackClock "0:00:17"]

1. d4 {[%clk 0:02:59]}  Nf6 {[%clk 0:02:59]} 2. c4 {[%clk 0:03:00]}  e6 {[%clk 0:02:58]} 3. Nc3 {[%clk 0:02:58]}  Bb4 {[%clk 0:02:57]} 4. Qb3 {[%clk 0:02:58]}  c5 {[%clk 0:02:49]} 5. Nf3 {[%clk 0:02:57]}  b6 {[%clk 0:02:31]} 6. Bg5 {[%clk 0:02:52]}  h6 {[%clk 0:02:30]} 7. Bh4 {[%clk 0:02:52]}  g5 {[%clk 0:02:30]} 8. Bg3 {[%clk 0:02:52]}  Ne4 {[%clk 0:02:22]} 9. Be5 {[%clk 0:02:49]}  f6 {[%clk 0:02:18]} 10. Bg3 {[%clk 0:02:48]}  Nc6 {[%clk 0:01:53]} 11. e3 {[%clk 0:02:48]}  Na5 {[%clk 0:01:48]} 12. Qc2 {[%clk 0:02:48]}  Bxc3+ {[%clk 0:01:49]} 13. bxc3 {[%clk 0:02:47]}  f5 {[%clk 0:01:37]} 14. d5 {[%clk 0:02:34]}  Ba6 {[%clk 0:01:26]} 15. Rd1 {[%clk 0:02:28]}  Qe7 {[%clk 0:01:10]} 16. h4 {[%clk 0:02:00]}  g4 {[%clk 0:00:54]} 17. Ne5 {[%clk 0:02:00]}  Nxg3 {[%clk 0:00:46]} 18. fxg3 {[%clk 0:01:56]}  Qg7 {[%clk 0:00:46]} 19. Nxd7 {[%clk 0:01:30]}  Kxd7 {[%clk 0:00:42]} 20. Qa4+ {[%clk 0:01:27]}  Kc7 {[%clk 0:00:35]} 21. Bd3 {[%clk 0:00:49]}  Qxc3+ {[%clk 0:00:34]} 22. Kf2 {[%clk 0:00:44]}  Bxc4 {[%clk 0:00:33]} 23. d6+ {[%clk 0:00:40]}  Kb8 {[%clk 0:00:28]} 24. Qd7 {[%clk 0:00:33]}  Rc8 {[%clk 0:00:20]} 25. Bxc4 {[%clk 0:00:30]}  Nxc4 {[%clk 0:00:17]} 26. Qxe6 {[%clk 0:00:20]}  Qc2+ {[%clk 0:00:16]} 27. Ke1 {[%clk 0:00:20]}  Qe4 {[%clk 0:00:15]} 28. Qxe4 {[%clk 0:00:17]}  fxe4 {[%clk 0:00:16]} 29. d7 {[%clk 0:00:17]}  Rd8 {[%clk 0:00:16]} 30. Ke2 {[%clk 0:00:17]}  Kc7 {[%clk 0:00:16]} 31. Rc1 {[%clk 0:00:16]}  Nd6 {[%clk 0:00:16]} 32. Rhd1 {[%clk 0:00:15]}  Rxd7 {[%clk 0:00:17]} 33. Rd5 {[%clk 0:00:16]}  Rad8 {[%clk 0:00:15]} 34. Rcd1 {[%clk 0:00:16]}  Nf7 {[%clk 0:00:15]} 35. Rxd7+ {[%clk 0:00:16]}  Rxd7 {[%clk 0:00:16]} 36. Rxd7+ {[%clk 0:00:16]}  Kxd7 {[%clk 0:00:17]} 37. Kd2 {[%clk 0:00:16]}  Kd6 {[%clk 0:00:17]} 38. Kc3 {[%clk 0:00:16]}  Ne5 {[%clk 0:00:17]} 0-1


[Site "https://www.chess.com"]